[Event "Titled Tuesday Blitz January 10 Late 2023"]
[White "Bochnicka, Vladimir"]
[Black "Stanisz, Patryk"]
[WhiteFideId "14943450"]
[BlackFideId "1123106"]
[WhiteElo "2327"]
[BlackElo "2161"]
[Result "1-0"]
[Round "06"]
[TimeControl "180+2"]
[Date "2023.01.10"]
[WhiteClock "0:00:05"]
[BlackClock "0:00:06"]

1. e4 {[%clk 0:00:00]}  c5 {[%clk 0:00:00]} 2. Nf3 {[%clk 0:03:00]}  Nc6 {[%clk 0:02:59]} 3. d4 {[%clk 0:03:01]}  cxd4 {[%clk 0:02:58]} 4. Nxd4 {[%clk 0:03:01]}  Nf6 {[%clk 0:02:59]} 5. Nc3 {[%clk 0:03:02]}  e5 {[%clk 0:02:59]} 6. Ndb5 {[%clk 0:03:02]}  d6 {[%clk 0:03:00]} 7. Bg5 {[%clk 0:03:03]}  a6 {[%clk 0:03:00]} 8. Na3 {[%clk 0:03:03]}  b5 {[%clk 0:03:00]} 9. Nd5 {[%clk 0:03:03]}  Be7 {[%clk 0:03:01]} 10. Bxf6 {[%clk 0:03:03]}  Bxf6 {[%clk 0:03:01]} 11. c3 {[%clk 0:03:04]}  O-O {[%clk 0:03:02]} 12. h4 {[%clk 0:03:04]}  Rb8 {[%clk 0:03:02]} 13. Nc2 {[%clk 0:03:00]}  Be6 {[%clk 0:03:00]} 14. Ncb4 {[%clk 0:03:00]}  Nxb4 {[%clk 0:02:59]} 15. Nxb4 {[%clk 0:02:44]}  Qb6 {[%clk 0:02:53]} 16. Be2 {[%clk 0:02:45]}  Qb7 {[%clk 0:02:05]} 17. Bf3 {[%clk 0:02:40]}  a5 {[%clk 0:01:56]} 18. Nc2 {[%clk 0:02:27]}  b4 {[%clk 0:01:54]} 19. g3 {[%clk 0:02:17]}  Rfd8 {[%clk 0:01:52]} 20. Ne3 {[%clk 0:02:04]}  Qa6 {[%clk 0:01:52]} 21. Be2 {[%clk 0:02:03]}  Qc6 {[%clk 0:01:45]} 22. Nd5 {[%clk 0:02:00]}  Bxd5 {[%clk 0:01:43]} 23. exd5 {[%clk 0:01:37]}  Qc5 {[%clk 0:01:36]} 24. c4 {[%clk 0:01:36]}  e4 {[%clk 0:01:37]} 25. O-O {[%clk 0:01:30]}  Bxb2 {[%clk 0:01:35]} 26. Rb1 {[%clk 0:01:27]}  Be5 {[%clk 0:01:34]} 27. Qc2 {[%clk 0:01:26]}  Bxg3 {[%clk 0:01:35]} 28. Qxe4 {[%clk 0:01:25]}  Re8 {[%clk 0:01:26]} 29. Qg4 {[%clk 0:01:22]}  Bxh4 {[%clk 0:01:18]} 30. Rb3 {[%clk 0:01:11]}  Re5 {[%clk 0:01:16]} 31. Kh1 {[%clk 0:01:11]}  Bf6 {[%clk 0:01:01]} 32. Rh3 {[%clk 0:00:53]}  Rg5 {[%clk 0:00:26]} 33. Qe4 {[%clk 0:00:48]}  g6 {[%clk 0:00:19]} 34. f4 {[%clk 0:00:46]}  Qc8 {[%clk 0:00:15]} 35. Qe3 {[%clk 0:00:39]}  Rf5 {[%clk 0:00:04]} 36. Bg4 {[%clk 0:00:20]}  Kg7 {[%clk 0:00:03]} 37. Rf2 {[%clk 0:00:20]}  Rb7 {[%clk 0:00:04]} 38. Rfh2 {[%clk 0:00:15]}  h5 {[%clk 0:00:03]} 39. Bxf5 {[%clk 0:00:15]}  Qxf5 {[%clk 0:00:02]} 40. Qf3 {[%clk 0:00:14]}  Re7 {[%clk 0:00:02]} 41. Rg2 {[%clk 0:00:14]}  Qb1+ {[%clk 0:00:02]} 42. Kh2 {[%clk 0:00:13]}  Re1 {[%clk 0:00:02]} 43. Rf2 {[%clk 0:00:13]}  Rg1 {[%clk 0:00:03]} 44. Rg3 {[%clk 0:00:03]}  h4 {[%clk 0:00:02]} 45. Rxg1 {[%clk 0:00:02]}  Qf5 {[%clk 0:00:02]} 46. Qg4 {[%clk 0:00:02]}  Qe4 {[%clk 0:00:03]} 47. Rf3 {[%clk 0:00:02]}  Qe2+ {[%clk 0:00:03]} 48. Qg2 {[%clk 0:00:02]}  Qe4 {[%clk 0:00:03]} 49. Rf2 {[%clk 0:00:02]}  Qf5 {[%clk 0:00:04]} 50. Qf3 {[%clk 0:00:02]}  Kg8 {[%clk 0:00:04]} 51. Rfg2 {[%clk 0:00:02]}  h3 {[%clk 0:00:04]} 52. Rg5 {[%clk 0:00:03]}  Qc2+ {[%clk 0:00:05]} 53. Kh1 {[%clk 0:00:03]}  Bxg5 {[%clk 0:00:04]} 54. fxg5 {[%clk 0:00:03]}  Qxc4 {[%clk 0:00:05]} 55. Qxh3 {[%clk 0:00:03]}  Qxd5+ {[%clk 0:00:04]} 56. Qg2 {[%clk 0:00:04]}  Qe5 {[%clk 0:00:05]} 57. Rf1 {[%clk 0:00:03]}  Kg7 {[%clk 0:00:05]} 58. Qf3 {[%clk 0:00:03]}  d5 {[%clk 0:00:05]} 59. Qf6+ {[%clk 0:00:03]}  Qxf6 {[%clk 0:00:05]} 60. Rxf6 {[%clk 0:00:03]}  Kf8 {[%clk 0:00:04]} 61. Rd6 {[%clk 0:00:03]}  Ke7 {[%clk 0:00:03]} 62. Rxd5 {[%clk 0:00:04]}  a4 {[%clk 0:00:04]} 63. Ra5 {[%clk 0:00:04]}  b3 {[%clk 0:00:05]} 64. Rxa4 {[%clk 0:00:05]}  b2 {[%clk 0:00:06]} 65. Rb4 {[%clk 0:00:05]} 1-0


[Site "https://www.chess.com"]

[Event "Titled Tuesday Blitz January 10 Late 2023"]
[White "Antonio, Jorge Carlos"]
[Black "Ongut, Tamas Gunes"]
[WhiteFideId "113190"]
[BlackFideId "770280"]
[WhiteElo "2277"]
[BlackElo "2299"]
[Result "0-1"]
[Round "06"]
[TimeControl "180+2"]
[Date "2023.01.10"]
[WhiteClock "0:02:29"]
[BlackClock "0:02:30"]

1. d4 {[%clk 0:00:00]}  Nf6 {[%clk 0:00:00]} 2. Nf3 {[%clk 0:03:00]}  g6 {[%clk 0:02:58]} 3. c4 {[%clk 0:03:00]}  Bg7 {[%clk 0:02:58]} 4. Nc3 {[%clk 0:03:00]}  O-O {[%clk 0:02:59]} 5. e4 {[%clk 0:03:00]}  d6 {[%clk 0:02:59]} 6. Be2 {[%clk 0:03:00]}  Nbd7 {[%clk 0:03:00]} 7. O-O {[%clk 0:03:00]}  e5 {[%clk 0:03:01]} 8. d5 {[%clk 0:03:00]}  Nc5 {[%clk 0:03:01]} 9. Qc2 {[%clk 0:02:59]}  a5 {[%clk 0:02:59]} 10. h3 {[%clk 0:02:58]}  Bd7 {[%clk 0:03:00]} 11. Be3 {[%clk 0:02:57]}  b6 {[%clk 0:02:51]} 12. b3 {[%clk 0:02:57]}  Nh5 {[%clk 0:02:49]} 13. a3 {[%clk 0:02:57]}  a4 {[%clk 0:02:37]} 14. b4 {[%clk 0:02:45]}  Nb3 {[%clk 0:02:35]} 15. Rad1 {[%clk 0:02:45]}  Nf4 {[%clk 0:02:34]} 16. Nd2 {[%clk 0:02:35]}  Nd4 {[%clk 0:02:34]} 17. Bxd4 {[%clk 0:02:29]}  exd4 {[%clk 0:02:30]} 0-1


[Site "https://www.chess.com"]

[Event "Titled Tuesday Blitz January 10 Late 2023"]
[White "Clawitter, Craig"]
[Black "Le Goff, Ronan"]
[WhiteFideId "2023105"]
[BlackFideId "612073"]
[WhiteElo "2050"]
[BlackElo "2320"]
[Result "0-1"]
[Round "06"]
[TimeControl "180+2"]
[Date "2023.01.10"]
[WhiteClock "0:00:05"]
[BlackClock "0:00:48"]

1. e4 {[%clk 0:00:00]}  e5 {[%clk 0:00:00]} 2. Nf3 {[%clk 0:02:50]}  Nc6 {[%clk 0:02:51]} 3. Bb5 {[%clk 0:02:51]}  a6 {[%clk 0:02:51]} 4. Ba4 {[%clk 0:02:50]}  Nf6 {[%clk 0:02:51]} 5. O-O {[%clk 0:02:51]}  b5 {[%clk 0:02:51]} 6. Bb3 {[%clk 0:02:51]}  Be7 {[%clk 0:02:51]} 7. Re1 {[%clk 0:02:51]}  O-O {[%clk 0:02:52]} 8. h3 {[%clk 0:02:33]}  d6 {[%clk 0:02:44]} 9. c3 {[%clk 0:02:33]}  Nb8 {[%clk 0:02:44]} 10. d4 {[%clk 0:02:33]}  Nbd7 {[%clk 0:02:44]} 11. Nbd2 {[%clk 0:02:33]}  Bb7 {[%clk 0:02:45]} 12. Bc2 {[%clk 0:02:32]}  Re8 {[%clk 0:02:45]} 13. Nf1 {[%clk 0:02:31]}  Bf8 {[%clk 0:02:35]} 14. Ng3 {[%clk 0:02:29]}  g6 {[%clk 0:02:35]} 15. a4 {[%clk 0:02:29]}  Bg7 {[%clk 0:02:35]} 16. Bg5 {[%clk 0:02:28]}  h6 {[%clk 0:02:27]} 17. Bd2 {[%clk 0:01:59]}  Kh7 {[%clk 0:02:16]} 18. d5 {[%clk 0:01:59]}  c6 {[%clk 0:02:16]} 19. axb5 {[%clk 0:01:47]}  axb5 {[%clk 0:02:14]} 20. dxc6 {[%clk 0:01:43]}  Bxc6 {[%clk 0:02:04]} 21. Bb3 {[%clk 0:01:41]}  Qe7 {[%clk 0:02:04]} 22. Nh2 {[%clk 0:01:35]}  Nc5 {[%clk 0:01:54]} 23. Bc2 {[%clk 0:01:19]}  Rxa1 {[%clk 0:01:43]} 24. Qxa1 {[%clk 0:01:18]}  Qb7 {[%clk 0:01:36]} 25. f3 {[%clk 0:01:18]}  d5 {[%clk 0:01:37]} 26. b4 {[%clk 0:01:05]}  Ncd7 {[%clk 0:01:32]} 27. Ng4 {[%clk 0:00:39]}  dxe4 {[%clk 0:01:17]} 28. Nxf6+ {[%clk 0:00:33]}  Nxf6 {[%clk 0:01:11]} 29. Nxe4 {[%clk 0:00:20]}  Nxe4 {[%clk 0:01:11]} 30. Bxe4 {[%clk 0:00:21]}  Bxe4 {[%clk 0:01:10]} 31. Rxe4 {[%clk 0:00:21]}  f5 {[%clk 0:01:11]} 32. Re2 {[%clk 0:00:22]}  e4 {[%clk 0:01:11]} 33. fxe4 {[%clk 0:00:18]}  Rxe4 {[%clk 0:01:10]} 34. Qe1 {[%clk 0:00:18]}  Qb6+ {[%clk 0:01:11]} 35. Kh1 {[%clk 0:00:17]}  Rxe2 {[%clk 0:01:06]} 36. Qxe2 {[%clk 0:00:16]}  Qc6 {[%clk 0:01:03]} 37. Qd3 {[%clk 0:00:17]}  Qc4 {[%clk 0:01:03]} 38. Qxc4 {[%clk 0:00:15]}  bxc4 {[%clk 0:00:57]} 39. Kg1 {[%clk 0:00:13]}  Kg8 {[%clk 0:00:58]} 40. Kf2 {[%clk 0:00:10]}  Kf7 {[%clk 0:00:58]} 41. b5 {[%clk 0:00:11]}  Ke6 {[%clk 0:00:58]} 42. b6 {[%clk 0:00:10]}  Kd7 {[%clk 0:00:58]} 43. Bf4 {[%clk 0:00:10]}  Kc6 {[%clk 0:00:54]} 44. Bc7 {[%clk 0:00:06]}  Bxc3 {[%clk 0:00:52]} 45. Kf3 {[%clk 0:00:05]}  Bd4 {[%clk 0:00:52]} 46. Ke2 {[%clk 0:00:05]}  Bxb6 {[%clk 0:00:49]} 47. Bxb6 {[%clk 0:00:05]}  Kxb6 {[%clk 0:00:48]} 0-1


[Site "https://www.chess.com"]

[Event "Titled Tuesday Blitz January 10 Late 2023"]
[White "Sivakumar, Shaaketh"]
[Black "Mitrovic, Darko R"]
[WhiteFideId "30940176"]
[BlackFideId "927023"]
[WhiteElo "2337"]
[BlackElo "2220"]
[Result "1-0"]
[Round "06"]
[TimeControl "180+2"]
[Date "2023.01.10"]
[WhiteClock "0:01:23"]
[BlackClock "0:00:02"]

1. d4 {[%clk 0:00:00]}  Nf6 {[%clk 0:00:00]} 2. c4 {[%clk 0:03:00]}  e6 {[%clk 0:02:53]} 3. Nc3 {[%clk 0:02:58]}  Bb4 {[%clk 0:02:53]} 4. f3 {[%clk 0:02:58]}  Bxc3+ {[%clk 0:02:54]} 5. bxc3 {[%clk 0:02:54]}  d6 {[%clk 0:02:53]} 6. e4 {[%clk 0:02:55]}  Nc6 {[%clk 0:02:50]} 7. Bd3 {[%clk 0:02:56]}  e5 {[%clk 0:02:49]} 8. d5 {[%clk 0:02:56]}  Ne7 {[%clk 0:02:49]} 9. Be3 {[%clk 0:02:55]}  O-O {[%clk 0:02:49]} 10. c5 {[%clk 0:02:55]}  c6 {[%clk 0:02:45]} 11. cxd6 {[%clk 0:02:55]}  Qxd6 {[%clk 0:02:39]} 12. c4 {[%clk 0:02:52]}  cxd5 {[%clk 0:02:37]} 13. cxd5 {[%clk 0:02:53]}  Nd7 {[%clk 0:02:30]} 14. Ne2 {[%clk 0:02:54]}  Nc5 {[%clk 0:02:08]} 15. Bc2 {[%clk 0:02:50]}  Bd7 {[%clk 0:02:04]} 16. O-O {[%clk 0:02:48]}  Rac8 {[%clk 0:01:50]} 17. Kh1 {[%clk 0:02:47]}  f6 {[%clk 0:01:45]} 18. Nc1 {[%clk 0:02:43]}  b6 {[%clk 0:01:42]} 19. a4 {[%clk 0:02:39]}  Rc7 {[%clk 0:01:37]} 20. a5 {[%clk 0:02:37]}  Rfc8 {[%clk 0:01:25]} 21. Ra2 {[%clk 0:02:37]}  Bb5 {[%clk 0:01:21]} 22. Rf2 {[%clk 0:02:28]}  Ng6 {[%clk 0:01:18]} 23. g3 {[%clk 0:02:25]}  Nf8 {[%clk 0:01:02]} 24. axb6 {[%clk 0:02:23]}  axb6 {[%clk 0:01:02]} 25. Rb2 {[%clk 0:02:18]}  Bc4 {[%clk 0:01:01]} 26. Nb3 {[%clk 0:02:19]}  Nfd7 {[%clk 0:00:55]} 27. Rd2 {[%clk 0:02:03]}  Nxb3 {[%clk 0:00:38]} 28. Bxb3 {[%clk 0:01:31]}  Bxb3 {[%clk 0:00:37]} 29. Qxb3 {[%clk 0:01:31]}  Rc3 {[%clk 0:00:35]} 30. Rdc2 {[%clk 0:01:30]}  Rxc2 {[%clk 0:00:30]} 31. Rxc2 {[%clk 0:01:25]}  Rxc2 {[%clk 0:00:14]} 32. Qxc2 {[%clk 0:01:25]}  Kf7 {[%clk 0:00:14]} 33. Qc6 {[%clk 0:01:25]}  Ke7 {[%clk 0:00:12]} 34. Qb7 {[%clk 0:01:25]}  Qb4 {[%clk 0:00:07]} 35. Kg2 {[%clk 0:01:25]}  Qb2+ {[%clk 0:00:04]} 36. Bf2 {[%clk 0:01:23]}  Qb5 {[%clk 0:00:02]} 37. Qc7 {[%clk 0:01:23]}  Qb4 {[%clk 0:00:02]} 38. d6+ {[%clk 0:01:23]} 1-0


[Site "https://www.chess.com"]

[Event "Titled Tuesday Blitz January 10 Late 2023"]
[White "Arenas, David"]
[Black "Soyunlu, Narmin"]
[WhiteFideId "4403177"]
[BlackFideId "13400843"]
[WhiteElo "2426"]
[BlackElo "2013"]
[Result "1-0"]
[Round "06"]
[TimeControl "180+2"]
[Date "2023.01.10"]
[WhiteClock "0:01:55"]
[BlackClock "0:00:55"]

1. e4 {[%clk 0:00:00]}  e5 {[%clk 0:00:00]} 2. Nf3 {[%clk 0:03:00]}  Nc6 {[%clk 0:02:58]} 3. Bc4 {[%clk 0:02:59]}  Bc5 {[%clk 0:02:58]} 4. c3 {[%clk 0:02:57]}  Nf6 {[%clk 0:02:57]} 5. d3 {[%clk 0:02:57]}  a6 {[%clk 0:02:55]} 6. a4 {[%clk 0:02:58]}  d6 {[%clk 0:02:53]} 7. O-O {[%clk 0:02:56]}  h6 {[%clk 0:02:49]} 8. Nbd2 {[%clk 0:02:56]}  Ba7 {[%clk 0:02:48]} 9. Re1 {[%clk 0:02:53]}  O-O {[%clk 0:02:48]} 10. h3 {[%clk 0:02:51]}  Qe7 {[%clk 0:02:48]} 11. Nf1 {[%clk 0:02:50]}  Be6 {[%clk 0:02:48]} 12. Ng3 {[%clk 0:02:45]}  Qd7 {[%clk 0:02:47]} 13. a5 {[%clk 0:02:43]}  Rae8 {[%clk 0:02:25]} 14. Nh4 {[%clk 0:02:34]}  d5 {[%clk 0:02:15]} 15. exd5 {[%clk 0:02:29]}  Bxd5 {[%clk 0:02:10]} 16. Bxd5 {[%clk 0:02:26]}  Nxd5 {[%clk 0:02:10]} 17. Nhf5 {[%clk 0:02:20]}  Re6 {[%clk 0:02:06]} 18. Qg4 {[%clk 0:02:20]}  g5 {[%clk 0:01:55]} 19. Nxh6+ {[%clk 0:02:14]}  Kh7 {[%clk 0:01:19]} 20. Nhf5 {[%clk 0:02:05]}  Rg6 {[%clk 0:01:16]} 21. Bxg5 {[%clk 0:02:01]}  Nf6 {[%clk 0:01:14]} 22. Qh4+ {[%clk 0:01:57]}  Kg8 {[%clk 0:00:55]} 23. Bxf6 {[%clk 0:01:55]} 1-0


[Site "https://www.chess.com"]

[Event "Titled Tuesday Blitz January 10 Late 2023"]
[White "Silva, Caio Henrique Angelico"]
[Black "Reprintsev, Alexander"]
[WhiteFideId "22777210"]
[BlackFideId "14100541"]
[WhiteElo "2129"]
[BlackElo "2253"]
[Result "1-0"]
[Round "06"]
[TimeControl "180+2"]
[Date "2023.01.10"]
[WhiteClock "0:01:44"]
[BlackClock "0:00:10"]

1. Nf3 {[%clk 0:00:00]}  d5 {[%clk 0:00:00]} 2. g3 {[%clk 0:03:00]}  Nc6 {[%clk 0:02:56]} 3. d4 {[%clk 0:02:55]}  Bf5 {[%clk 0:02:55]} 4. Bg2 {[%clk 0:02:55]}  Nb4 {[%clk 0:02:47]} 5. Na3 {[%clk 0:02:52]}  e6 {[%clk 0:02:43]} 6. O-O {[%clk 0:02:52]}  h6 {[%clk 0:02:43]} 7. Ne5 {[%clk 0:02:52]}  Nf6 {[%clk 0:02:16]} 8. c3 {[%clk 0:02:45]}  Be7 {[%clk 0:02:14]} 9. cxb4 {[%clk 0:02:43]}  O-O {[%clk 0:01:55]} 10. b5 {[%clk 0:02:41]}  Qe8 {[%clk 0:01:55]} 11. Qb3 {[%clk 0:02:36]}  Ne4 {[%clk 0:01:48]} 12. Nc2 {[%clk 0:02:34]}  f6 {[%clk 0:01:46]} 13. Nd3 {[%clk 0:02:19]}  Nd6 {[%clk 0:01:43]} 14. Ne3 {[%clk 0:02:18]}  Bxd3 {[%clk 0:01:42]} 15. Qxd3 {[%clk 0:02:16]}  Qxb5 {[%clk 0:01:39]} 16. Qxb5 {[%clk 0:02:15]}  Nxb5 {[%clk 0:01:34]} 17. Rd1 {[%clk 0:02:13]}  Kf7 {[%clk 0:01:35]} 18. Nc2 {[%clk 0:02:13]}  f5 {[%clk 0:01:30]} 19. a4 {[%clk 0:02:03]}  Nd6 {[%clk 0:01:26]} 20. Ne1 {[%clk 0:01:51]}  c6 {[%clk 0:01:25]} 21. Nd3 {[%clk 0:01:52]}  Bf6 {[%clk 0:01:01]} 22. e3 {[%clk 0:01:49]}  b6 {[%clk 0:00:55]} 23. b3 {[%clk 0:01:48]}  Rfc8 {[%clk 0:00:50]} 24. Ba3 {[%clk 0:01:48]}  Ne4 {[%clk 0:00:48]} 25. Rac1 {[%clk 0:01:47]}  Rc7 {[%clk 0:00:46]} 26. Rc2 {[%clk 0:01:46]}  Rac8 {[%clk 0:00:32]} 27. Rdc1 {[%clk 0:01:44]}  g5 {[%clk 0:00:10]} 28. f3 {[%clk 0:01:44]} 1-0


[Site "https://www.chess.com"]

[Event "Titled Tuesday Blitz January 10 Late 2023"]
[White "Womacka, Mathias"]
[Black "Rose, Felix"]
[WhiteFideId "4611390"]
[BlackFideId "5105722"]
[WhiteElo "2396"]
[BlackElo "2091"]
[Result "1-0"]
[Round "06"]
[TimeControl "180+2"]
[Date "2023.01.10"]
[WhiteClock "0:02:21"]
[BlackClock "0:02:26"]

1. e4 {[%clk 0:00:00]}  e5 {[%clk 0:00:00]} 2. Nf3 {[%clk 0:03:00]}  Nc6 {[%clk 0:02:59]} 3. Bb5 {[%clk 0:03:00]}  a6 {[%clk 0:02:59]} 4. Bxc6 {[%clk 0:03:00]}  dxc6 {[%clk 0:03:00]} 5. O-O {[%clk 0:03:01]}  Bg4 {[%clk 0:03:00]} 6. h3 {[%clk 0:03:01]}  h5 {[%clk 0:02:59]} 7. d3 {[%clk 0:03:01]}  Qf6 {[%clk 0:03:00]} 8. Nbd2 {[%clk 0:03:01]}  g5 {[%clk 0:02:59]} 9. Nc4 {[%clk 0:03:02]}  Bxf3 {[%clk 0:02:58]} 10. Qxf3 {[%clk 0:03:01]}  Qxf3 {[%clk 0:02:56]} 11. gxf3 {[%clk 0:03:01]}  f6 {[%clk 0:02:56]} 12. Be3 {[%clk 0:03:02]}  c5 {[%clk 0:02:54]} 13. Rfd1 {[%clk 0:03:02]}  Ne7 {[%clk 0:02:50]} 14. Bxc5 {[%clk 0:03:00]}  Ng6 {[%clk 0:02:48]} 15. Be3 {[%clk 0:02:58]}  Nh4 {[%clk 0:02:48]} 16. Nd2 {[%clk 0:02:46]}  O-O-O {[%clk 0:02:44]} 17. Kf1 {[%clk 0:02:45]}  Bb4 {[%clk 0:02:43]} 18. c3 {[%clk 0:02:45]}  Ba5 {[%clk 0:02:41]} 19. Ke2 {[%clk 0:02:44]}  Bb6 {[%clk 0:02:36]} 20. Bxb6 {[%clk 0:02:45]}  cxb6 {[%clk 0:02:32]} 21. Nc4 {[%clk 0:02:21]}  b5 {[%clk 0:02:33]} 22. Ne3 {[%clk 0:02:21]}  Rd7 {[%clk 0:02:30]} 23. Nd5 {[%clk 0:02:21]}  f5 {[%clk 0:02:26]} 24. Nb6+ {[%clk 0:02:21]} 1-0


[Site "https://www.chess.com"]

[Event "Titled Tuesday Blitz January 10 Late 2023"]
[White "Necromon"]
[Black "Zampronha, Wladimir Camilo"]
[BlackFideId "2103087"]
[WhiteElo "2454"]
[BlackElo "2176"]
[Result "1/2-1/2"]
[Round "06"]
[TimeControl "180+2"]
[Date "2023.01.10"]
[WhiteClock "0:00:16"]
[BlackClock "0:00:20"]

1. Nf3 {[%clk 0:00:00]}  Nf6 {[%clk 0:00:00]} 2. g3 {[%clk 0:02:57]}  e6 {[%clk 0:02:59]} 3. Bg2 {[%clk 0:02:55]}  d5 {[%clk 0:02:59]} 4. O-O {[%clk 0:02:54]}  Be7 {[%clk 0:03:00]} 5. c4 {[%clk 0:02:55]}  O-O {[%clk 0:03:00]} 6. cxd5 {[%clk 0:02:55]}  exd5 {[%clk 0:03:00]} 7. d4 {[%clk 0:02:51]}  c6 {[%clk 0:03:01]} 8. Nc3 {[%clk 0:02:52]}  Bf5 {[%clk 0:02:58]} 9. Qb3 {[%clk 0:02:52]}  Qb6 {[%clk 0:02:58]} 10. Qxb6 {[%clk 0:02:51]}  axb6 {[%clk 0:02:57]} 11. Ne5 {[%clk 0:02:34]}  Nbd7 {[%clk 0:02:58]} 12. f4 {[%clk 0:02:27]}  Rfe8 {[%clk 0:02:57]} 13. h3 {[%clk 0:02:27]}  h5 {[%clk 0:02:46]} 14. e3 {[%clk 0:02:16]}  b5 {[%clk 0:02:45]} 15. a4 {[%clk 0:02:05]}  Bc2 {[%clk 0:02:45]} 16. a5 {[%clk 0:01:55]}  Bb4 {[%clk 0:02:21]} 17. Rf2 {[%clk 0:01:48]}  Bf5 {[%clk 0:02:09]} 18. Bd2 {[%clk 0:01:41]}  Rxa5 {[%clk 0:01:57]} 19. Rxa5 {[%clk 0:01:41]}  Bxa5 {[%clk 0:01:47]} 20. Nxd5 {[%clk 0:01:40]}  Bxd2 {[%clk 0:01:48]} 21. Nxf6+ {[%clk 0:00:48]}  gxf6 {[%clk 0:01:42]} 22. Nxd7 {[%clk 0:00:48]}  Bxd7 {[%clk 0:01:42]} 23. Rxd2 {[%clk 0:00:48]}  Rxe3 {[%clk 0:01:24]} 24. Kf2 {[%clk 0:00:48]}  Rb3 {[%clk 0:01:25]} 25. d5 {[%clk 0:00:48]}  c5 {[%clk 0:01:13]} 26. d6 {[%clk 0:00:47]}  Kf8 {[%clk 0:01:13]} 27. Bxb7 {[%clk 0:00:47]}  Ke8 {[%clk 0:01:00]} 28. Re2+ {[%clk 0:00:45]}  Kd8 {[%clk 0:00:56]} 29. Bd5 {[%clk 0:00:42]}  c4 {[%clk 0:00:57]} 30. Bxf7 {[%clk 0:00:42]}  Bxh3 {[%clk 0:00:55]} 31. Bxh5 {[%clk 0:00:41]}  Kd7 {[%clk 0:00:52]} 32. Rd2 {[%clk 0:00:38]}  Bf5 {[%clk 0:00:43]} 33. Be2 {[%clk 0:00:33]}  Bd3 {[%clk 0:00:39]} 34. Bxd3 {[%clk 0:00:25]}  cxd3 {[%clk 0:00:36]} 35. Ke3 {[%clk 0:00:24]}  f5 {[%clk 0:00:37]} 36. Rxd3 {[%clk 0:00:25]}  Rxb2 {[%clk 0:00:34]} 37. Rd5 {[%clk 0:00:21]}  Rb3+ {[%clk 0:00:34]} 38. Kd4 {[%clk 0:00:21]}  b4 {[%clk 0:00:30]} 39. Rxf5 {[%clk 0:00:17]}  Rxg3 {[%clk 0:00:27]} 40. Rb5 {[%clk 0:00:15]}  Kxd6 {[%clk 0:00:28]} 41. Rb6+ {[%clk 0:00:14]}  Ke7 {[%clk 0:00:25]} 42. Rxb4 {[%clk 0:00:14]}  Kf6 {[%clk 0:00:25]} 43. Ke4 {[%clk 0:00:15]}  Rg1 {[%clk 0:00:24]} 44. Rb6+ {[%clk 0:00:15]}  Kf7 {[%clk 0:00:22]} 45. Ke5 {[%clk 0:00:16]}  Re1+ {[%clk 0:00:22]} 46. Kf5 {[%clk 0:00:16]}  Re7 {[%clk 0:00:22]} 47. Ra6 {[%clk 0:00:17]}  Rb7 {[%clk 0:00:21]} 48. Kg5 {[%clk 0:00:17]}  Rc7 {[%clk 0:00:21]} 49. Rh6 {[%clk 0:00:17]}  Kg7 {[%clk 0:00:21]} 50. f5 {[%clk 0:00:16]}  Rc1 {[%clk 0:00:20]} 51. f6+ {[%clk 0:00:17]}  Kg8 {[%clk 0:00:20]} 52. Rg6+ {[%clk 0:00:16]}  Kf7 {[%clk 0:00:20]} 53. Rg7+ {[%clk 0:00:16]}  Kf8 {[%clk 0:00:19]} 54. Kg6 {[%clk 0:00:16]}  Rg1+ {[%clk 0:00:20]} 55. Kh7 {[%clk 0:00:16]}  Rh1+ {[%clk 0:00:20]} 56. Kg6 {[%clk 0:00:16]}  Rg1+ {[%clk 0:00:19]} 57. Kh6 {[%clk 0:00:16]}  Rh1+ {[%clk 0:00:20]} 58. Kg6 {[%clk 0:00:16]}  Rg1+ {[%clk 0:00:20]} 1/2-1/2


[Site "https://www.chess.com"]

[Event "Titled Tuesday Blitz January 10 Late 2023"]
[White "Jodorcovsky Werjivker, Paulo"]
[Black "Novikova, Galina"]
[WhiteFideId "3700305"]
[BlackFideId "4157095"]
[WhiteElo "2182"]
[BlackElo "2073"]
[Result "0-1"]
[Round "06"]
[TimeControl "180+2"]
[Date "2023.01.10"]
[WhiteClock "0:00:48"]
[BlackClock "0:01:56"]

1. e4 {[%clk 0:00:00]}  e6 {[%clk 0:00:00]} 2. d4 {[%clk 0:03:00]}  d5 {[%clk 0:03:00]} 3. Nd2 {[%clk 0:03:00]}  Nc6 {[%clk 0:03:01]} 4. Ngf3 {[%clk 0:03:01]}  g5 {[%clk 0:03:00]} 5. Bb5 {[%clk 0:02:59]}  Bd7 {[%clk 0:03:00]} 6. exd5 {[%clk 0:02:54]}  exd5 {[%clk 0:03:00]} 7. c3 {[%clk 0:02:52]}  Qf6 {[%clk 0:03:00]} 8. Qe2+ {[%clk 0:02:49]}  Nge7 {[%clk 0:03:00]} 9. Bxc6 {[%clk 0:02:48]}  Bxc6 {[%clk 0:02:59]} 10. Nb3 {[%clk 0:02:44]}  h6 {[%clk 0:02:59]} 11. Ne5 {[%clk 0:02:44]}  O-O-O {[%clk 0:02:57]} 12. Bd2 {[%clk 0:02:20]}  Ng6 {[%clk 0:02:56]} 13. Qg4+ {[%clk 0:02:14]}  Kb8 {[%clk 0:02:56]} 14. Nxg6 {[%clk 0:02:00]}  Qxg6 {[%clk 0:02:51]} 15. O-O {[%clk 0:01:55]}  Bd6 {[%clk 0:02:48]} 16. f4 {[%clk 0:01:55]}  f5 {[%clk 0:02:40]} 17. Qh3 {[%clk 0:01:55]}  g4 {[%clk 0:02:26]} 18. Qg3 {[%clk 0:01:54]}  h5 {[%clk 0:02:25]} 19. h4 {[%clk 0:01:47]}  Be7 {[%clk 0:02:25]} 20. Rae1 {[%clk 0:01:47]}  Qf6 {[%clk 0:02:21]} 21. Re5 {[%clk 0:01:43]}  Rdf8 {[%clk 0:02:21]} 22. Qe3 {[%clk 0:01:40]}  Bd6 {[%clk 0:02:15]} 23. Re6 {[%clk 0:01:39]}  Qxh4 {[%clk 0:02:11]} 24. Be1 {[%clk 0:01:26]}  Qd8 {[%clk 0:02:11]} 25. g3 {[%clk 0:01:20]}  Re8 {[%clk 0:02:10]} 26. Kg2 {[%clk 0:01:17]}  Qd7 {[%clk 0:02:06]} 27. Rxe8+ {[%clk 0:01:11]}  Rxe8 {[%clk 0:01:58]} 28. Qd2 {[%clk 0:00:49]}  Bb5 {[%clk 0:01:58]} 29. Rf2 {[%clk 0:00:48]}  Qe7 {[%clk 0:01:56]} 0-1


[Site "https://www.chess.com"]